[Event "Titled Tuesday Blitz November 2 2021"]
[White "Lovkov, Roman"]
[Black "Swicarz, Maciej"]
[WhiteFideId "4157389"]
[BlackFideId "1113585"]
[WhiteElo "2371"]
[BlackElo "2130"]
[Result "1-0"]
[Round "05"]
[TimeControl "180+1"]
[Date "2021.11.02"]
[WhiteClock "0:00:22"]
[BlackClock "0:00:13"]

1. e4 {[%clk 0:03:00]}  c6 {[%clk 0:02:59]} 2. d4 {[%clk 0:03:00]}  d5 {[%clk 0:03:00]} 3. exd5 {[%clk 0:03:01]}  cxd5 {[%clk 0:03:00]} 4. c4 {[%clk 0:03:01]}  Nf6 {[%clk 0:02:59]} 5. Nc3 {[%clk 0:03:01]}  g6 {[%clk 0:03:00]} 6. cxd5 {[%clk 0:03:01]}  Bg7 {[%clk 0:03:00]} 7. Bc4 {[%clk 0:03:01]}  O-O {[%clk 0:02:59]} 8. Nf3 {[%clk 0:03:02]}  a6 {[%clk 0:02:58]} 9. a4 {[%clk 0:03:01]}  b6 {[%clk 0:02:56]} 10. O-O {[%clk 0:03:00]}  Bb7 {[%clk 0:02:56]} 11. Qb3 {[%clk 0:03:00]}  Nbd7 {[%clk 0:02:54]} 12. Bf4 {[%clk 0:02:56]}  Nh5 {[%clk 0:02:51]} 13. Be5 {[%clk 0:02:55]}  Nxe5 {[%clk 0:02:42]} 14. dxe5 {[%clk 0:02:56]}  Rc8 {[%clk 0:02:41]} 15. Rfe1 {[%clk 0:02:51]}  Qc7 {[%clk 0:02:38]} 16. Bf1 {[%clk 0:02:51]}  Rfd8 {[%clk 0:02:32]} 17. Rad1 {[%clk 0:02:50]}  Bh6 {[%clk 0:02:08]} 18. Rd4 {[%clk 0:02:43]}  Nf4 {[%clk 0:01:37]} 19. g3 {[%clk 0:02:23]}  Nh5 {[%clk 0:01:37]} 20. Rc4 {[%clk 0:02:14]}  Qb8 {[%clk 0:01:36]} 21. Rxc8 {[%clk 0:02:05]}  Bxc8 {[%clk 0:01:36]} 22. Nd4 {[%clk 0:01:58]}  Qc7 {[%clk 0:01:24]} 23. Nc6 {[%clk 0:01:42]}  Re8 {[%clk 0:01:20]} 24. Bg2 {[%clk 0:01:42]}  Bd2 {[%clk 0:01:06]} 25. Rd1 {[%clk 0:01:33]}  Bh6 {[%clk 0:01:05]} 26. d6 {[%clk 0:01:12]}  exd6 {[%clk 0:01:02]} 27. Nd5 {[%clk 0:01:00]}  Qxc6 {[%clk 0:00:51]} 28. Ne7+ {[%clk 0:00:59]}  Rxe7 {[%clk 0:00:50]} 29. Bxc6 {[%clk 0:00:58]}  Rxe5 {[%clk 0:00:48]} 30. Qxb6 {[%clk 0:00:54]}  Kg7 {[%clk 0:00:47]} 31. Qc7 {[%clk 0:00:48]}  Bg4 {[%clk 0:00:44]} 32. Qxd6 {[%clk 0:00:48]}  Re6 {[%clk 0:00:38]} 33. Qd4+ {[%clk 0:00:47]}  Nf6 {[%clk 0:00:38]} 34. Bd7 {[%clk 0:00:40]}  Re4 {[%clk 0:00:17]} 35. Bxg4 {[%clk 0:00:40]}  Rxd4 {[%clk 0:00:16]} 36. Rxd4 {[%clk 0:00:40]}  Bc1 {[%clk 0:00:15]} 37. b4 {[%clk 0:00:36]}  Bb2 {[%clk 0:00:15]} 38. Rc4 {[%clk 0:00:36]}  Ba3 {[%clk 0:00:15]} 39. Bf3 {[%clk 0:00:34]}  h5 {[%clk 0:00:14]} 40. Bb7 {[%clk 0:00:34]}  a5 {[%clk 0:00:13]} 41. bxa5 {[%clk 0:00:34]}  Nd7 {[%clk 0:00:14]} 42. a6 {[%clk 0:00:27]}  Ne5 {[%clk 0:00:14]} 43. a7 {[%clk 0:00:23]}  Nxc4 {[%clk 0:00:13]} 44. a8=Q {[%clk 0:00:23]}  Bd6 {[%clk 0:00:13]} 45. Qa6 {[%clk 0:00:22]} 1-0


[Site "https://www.chess.com"]

[Event "Titled Tuesday Blitz November 2 2021"]
[White "Nakamura, Hikaru"]
[Black "Cunjalo, Faris"]
[WhiteFideId "2016192"]
[BlackFideId "14410710"]
[WhiteElo "2884"]
[BlackElo "2234"]
[Result "1-0"]
[Round "05"]
[TimeControl "180+1"]
[Date "2021.11.02"]
[WhiteClock "0:00:35"]
[BlackClock "0:00:01"]

1. Nf3 {[%clk 0:03:00]}  d5 {[%clk 0:02:58]} 2. e3 {[%clk 0:02:59]}  Nf6 {[%clk 0:02:58]} 3. c4 {[%clk 0:03:00]}  e6 {[%clk 0:02:58]} 4. b3 {[%clk 0:03:00]}  b6 {[%clk 0:02:58]} 5. Bb2 {[%clk 0:03:00]}  Bb7 {[%clk 0:02:59]} 6. cxd5 {[%clk 0:03:00]}  exd5 {[%clk 0:02:58]} 7. d4 {[%clk 0:03:01]}  Nbd7 {[%clk 0:02:57]} 8. Nc3 {[%clk 0:03:01]}  a6 {[%clk 0:02:57]} 9. g3 {[%clk 0:03:02]}  Bd6 {[%clk 0:02:57]} 10. Bg2 {[%clk 0:03:02]}  O-O {[%clk 0:02:57]} 11. O-O {[%clk 0:03:03]}  Re8 {[%clk 0:02:57]} 12. Rc1 {[%clk 0:03:00]}  Qe7 {[%clk 0:02:56]} 13. Ne1 {[%clk 0:02:56]}  Ne4 {[%clk 0:02:47]} 14. Nd3 {[%clk 0:02:56]}  h6 {[%clk 0:02:43]} 15. Ne2 {[%clk 0:02:49]}  a5 {[%clk 0:02:33]} 16. a4 {[%clk 0:02:45]}  Ba6 {[%clk 0:02:23]} 17. Re1 {[%clk 0:02:44]}  Ndf6 {[%clk 0:02:19]} 18. f3 {[%clk 0:02:30]}  Ng5 {[%clk 0:01:48]} 19. Nef4 {[%clk 0:02:30]}  Ne6 {[%clk 0:01:33]} 20. Nh3 {[%clk 0:02:14]}  c5 {[%clk 0:01:29]} 21. e4 {[%clk 0:01:52]}  dxe4 {[%clk 0:01:20]} 22. fxe4 {[%clk 0:01:51]}  Nxd4 {[%clk 0:01:03]} 23. Bxd4 {[%clk 0:01:49]}  cxd4 {[%clk 0:01:03]} 24. e5 {[%clk 0:01:49]}  Bxd3 {[%clk 0:01:04]} 25. Qxd3 {[%clk 0:01:47]}  Bxe5 {[%clk 0:00:55]} 26. Bxa8 {[%clk 0:01:47]}  Rxa8 {[%clk 0:00:56]} 27. Qf5 {[%clk 0:01:44]}  Nd7 {[%clk 0:00:48]} 28. Rc7 {[%clk 0:01:14]}  Qb4 {[%clk 0:00:41]} 29. Rxe5 {[%clk 0:01:14]}  Nxe5 {[%clk 0:00:41]} 30. Qxe5 {[%clk 0:01:15]}  Qxb3 {[%clk 0:00:30]} 31. Qxd4 {[%clk 0:01:15]}  Re8 {[%clk 0:00:30]} 32. Qc4 {[%clk 0:01:01]}  Qd1+ {[%clk 0:00:18]} 33. Kg2 {[%clk 0:01:01]}  Qe2+ {[%clk 0:00:13]} 34. Nf2 {[%clk 0:01:00]}  Qxc4 {[%clk 0:00:05]} 35. Rxc4 {[%clk 0:01:01]}  Rb8 {[%clk 0:00:06]} 36. Rc2 {[%clk 0:00:58]}  b5 {[%clk 0:00:06]} 37. Rb2 {[%clk 0:00:57]}  b4 {[%clk 0:00:06]} 38. Ne4 {[%clk 0:00:58]}  Rc8 {[%clk 0:00:06]} 39. Kf3 {[%clk 0:00:56]}  f5 {[%clk 0:00:04]} 40. Nd6 {[%clk 0:00:55]}  Rc3+ {[%clk 0:00:05]} 41. Kf4 {[%clk 0:00:55]}  Ra3 {[%clk 0:00:06]} 42. Kxf5 {[%clk 0:00:53]}  Kh7 {[%clk 0:00:06]} 43. Ke5 {[%clk 0:00:34]}  Rxa4 {[%clk 0:00:06]} 44. Kd5 {[%clk 0:00:35]}  Ra1 {[%clk 0:00:05]} 45. Nc4 {[%clk 0:00:35]}  Kg6 {[%clk 0:00:04]} 46. Ke4 {[%clk 0:00:34]}  Kg5 {[%clk 0:00:04]} 47. Kf3 {[%clk 0:00:34]}  Kf5 {[%clk 0:00:03]} 48. Re2 {[%clk 0:00:35]}  Ra2 {[%clk 0:00:01]} 49. Rxa2 {[%clk 0:00:35]} 1-0


[Site "https://www.chess.com"]

[Event "Titled Tuesday Blitz November 2 2021"]
[White "Nesterov, Arseniy"]
[Black "Viani Antonio Dcunha"]
[WhiteFideId "24198455"]
[BlackFideId "5027330"]
[WhiteElo "2494"]
[BlackElo "2366"]
[Result "1-0"]
[Round "05"]
[TimeControl "180+1"]
[Date "2021.11.02"]
[WhiteClock "0:00:13"]
[BlackClock "0:00:16"]

1. d4 {[%clk 0:03:00]}  Nf6 {[%clk 0:02:59]} 2. c4 {[%clk 0:03:01]}  g6 {[%clk 0:02:59]} 3. Nc3 {[%clk 0:03:01]}  Bg7 {[%clk 0:03:00]} 4. e4 {[%clk 0:03:01]}  d6 {[%clk 0:03:00]} 5. Be2 {[%clk 0:03:02]}  O-O {[%clk 0:03:00]} 6. Be3 {[%clk 0:03:02]}  e5 {[%clk 0:02:57]} 7. d5 {[%clk 0:03:02]}  a5 {[%clk 0:02:55]} 8. g4 {[%clk 0:03:02]}  Na6 {[%clk 0:02:51]} 9. h4 {[%clk 0:03:02]}  Nc5 {[%clk 0:02:42]} 10. f3 {[%clk 0:03:02]}  c6 {[%clk 0:02:40]} 11. h5 {[%clk 0:02:59]}  cxd5 {[%clk 0:02:39]} 12. cxd5 {[%clk 0:03:00]}  a4 {[%clk 0:02:34]} 13. Qd2 {[%clk 0:03:00]}  Qa5 {[%clk 0:02:32]} 14. Nh3 {[%clk 0:02:37]}  Bd7 {[%clk 0:02:26]} 15. Nf2 {[%clk 0:02:26]}  b5 {[%clk 0:02:23]} 16. Ncd1 {[%clk 0:02:25]}  Qxd2+ {[%clk 0:02:19]} 17. Bxd2 {[%clk 0:02:26]}  Rfc8 {[%clk 0:02:01]} 18. Nd3 {[%clk 0:02:17]}  Nxd3+ {[%clk 0:01:54]} 19. Bxd3 {[%clk 0:02:18]}  Rab8 {[%clk 0:01:52]} 20. Bb4 {[%clk 0:02:16]}  Ne8 {[%clk 0:01:44]} 21. Nc3 {[%clk 0:01:56]}  Bf8 {[%clk 0:01:41]} 22. hxg6 {[%clk 0:01:38]}  hxg6 {[%clk 0:01:33]} 23. Ke2 {[%clk 0:01:26]}  Kg7 {[%clk 0:01:08]} 24. Rh2 {[%clk 0:01:16]}  Be7 {[%clk 0:00:51]} 25. Rah1 {[%clk 0:01:10]}  Kf6 {[%clk 0:00:40]} 26. Rh7 {[%clk 0:01:04]}  Bf8 {[%clk 0:00:33]} 27. g5+ {[%clk 0:00:56]}  Ke7 {[%clk 0:00:33]} 28. f4 {[%clk 0:00:53]}  exf4 {[%clk 0:00:27]} 29. e5 {[%clk 0:00:53]}  Bg7 {[%clk 0:00:23]} 30. Rxg7 {[%clk 0:00:34]}  Nxg7 {[%clk 0:00:24]} 31. Bxd6+ {[%clk 0:00:34]}  Kd8 {[%clk 0:00:25]} 32. Rh8+ {[%clk 0:00:30]}  Ne8 {[%clk 0:00:22]} 33. Bxb8 {[%clk 0:00:29]}  Rxb8 {[%clk 0:00:23]} 34. Ne4 {[%clk 0:00:21]}  Bf5 {[%clk 0:00:20]} 35. Nf6 {[%clk 0:00:15]}  Ke7 {[%clk 0:00:18]} 36. Bxf5 {[%clk 0:00:13]}  gxf5 {[%clk 0:00:16]} 37. d6+ {[%clk 0:00:13]} 1-0


[Site "https://www.chess.com"]

[Event "Titled Tuesday Blitz November 2 2021"]
[White "Nyudleev, Dolgan"]
[Black "Petesch, Gabriel"]
[WhiteFideId "4198360"]
[BlackFideId "2032465"]
[WhiteElo "2354"]
[BlackElo "2374"]
[Result "1-0"]
[Round "05"]
[TimeControl "180+1"]
[Date "2021.11.02"]
[WhiteClock "0:00:07"]
[BlackClock "0:00:11"]

1. e4 {[%clk 0:02:57]}  c5 {[%clk 0:02:58]} 2. Nf3 {[%clk 0:02:53]}  e6 {[%clk 0:02:58]} 3. c3 {[%clk 0:02:27]}  d5 {[%clk 0:02:42]} 4. exd5 {[%clk 0:02:27]}  Qxd5 {[%clk 0:02:42]} 5. d4 {[%clk 0:02:27]}  Nc6 {[%clk 0:02:38]} 6. Be2 {[%clk 0:02:25]}  Nf6 {[%clk 0:02:36]} 7. Na3 {[%clk 0:02:24]}  Be7 {[%clk 0:02:24]} 8. Nb5 {[%clk 0:02:21]}  Qd8 {[%clk 0:02:24]} 9. dxc5 {[%clk 0:02:18]}  Bxc5 {[%clk 0:01:16]} 10. Qxd8+ {[%clk 0:02:16]}  Kxd8 {[%clk 0:01:17]} 11. Bg5 {[%clk 0:02:03]}  a6 {[%clk 0:01:09]} 12. Rd1+ {[%clk 0:01:58]}  Ke7 {[%clk 0:01:07]} 13. Nbd4 {[%clk 0:01:58]}  Bd7 {[%clk 0:01:05]} 14. O-O {[%clk 0:01:56]}  Rhd8 {[%clk 0:01:01]} 15. Nxc6+ {[%clk 0:01:53]}  Bxc6 {[%clk 0:00:58]} 16. Ne5 {[%clk 0:01:54]}  Bd5 {[%clk 0:00:41]} 17. c4 {[%clk 0:01:27]}  Be4 {[%clk 0:00:39]} 18. Bd3 {[%clk 0:01:27]}  Bxd3 {[%clk 0:00:30]} 19. Nxd3 {[%clk 0:01:26]}  Ba7 {[%clk 0:00:24]} 20. b3 {[%clk 0:01:20]}  h6 {[%clk 0:00:24]} 21. Bf4 {[%clk 0:01:13]}  Ne4 {[%clk 0:00:23]} 22. Rfe1 {[%clk 0:01:09]}  Rxd3 {[%clk 0:00:19]} 23. Rxd3 {[%clk 0:01:08]}  Nxf2 {[%clk 0:00:10]} 24. Rd2 {[%clk 0:00:38]}  Nd3+ {[%clk 0:00:08]} 25. Kf1 {[%clk 0:00:14]}  Nxe1 {[%clk 0:00:08]} 26. Kxe1 {[%clk 0:00:14]}  Bc5 {[%clk 0:00:09]} 27. Ke2 {[%clk 0:00:14]}  a5 {[%clk 0:00:09]} 28. Be5 {[%clk 0:00:12]}  f6 {[%clk 0:00:09]} 29. Bc3 {[%clk 0:00:13]}  b6 {[%clk 0:00:09]} 30. Kf3 {[%clk 0:00:13]}  Rd8 {[%clk 0:00:08]} 31. Rxd8 {[%clk 0:00:13]}  Kxd8 {[%clk 0:00:09]} 32. Kg4 {[%clk 0:00:13]}  Ke7 {[%clk 0:00:08]} 33. Kh5 {[%clk 0:00:13]}  Kf7 {[%clk 0:00:07]} 34. Bb2 {[%clk 0:00:14]}  Bg1 {[%clk 0:00:06]} 35. h3 {[%clk 0:00:13]}  Bc5 {[%clk 0:00:07]} 36. Kg4 {[%clk 0:00:13]}  g6 {[%clk 0:00:06]} 37. a3 {[%clk 0:00:14]}  e5 {[%clk 0:00:05]} 38. Kf3 {[%clk 0:00:13]}  Ke6 {[%clk 0:00:05]} 39. g4 {[%clk 0:00:14]}  f5 {[%clk 0:00:05]} 40. Bc1 {[%clk 0:00:14]}  h5 {[%clk 0:00:04]} 41. Bb2 {[%clk 0:00:13]}  Bd6 {[%clk 0:00:03]} 42. gxh5 {[%clk 0:00:12]}  gxh5 {[%clk 0:00:04]} 43. Bc1 {[%clk 0:00:12]}  e4+ {[%clk 0:00:04]} 44. Ke3 {[%clk 0:00:12]}  Be7 {[%clk 0:00:04]} 45. Kf4 {[%clk 0:00:10]}  Bf6 {[%clk 0:00:03]} 46. Be3 {[%clk 0:00:10]}  Be5+ {[%clk 0:00:02]} 47. Kg5 {[%clk 0:00:10]}  Bb2 {[%clk 0:00:02]} 48. Bxb6 {[%clk 0:00:09]}  Bc1+ {[%clk 0:00:03]} 49. Kxh5 {[%clk 0:00:09]}  e3 {[%clk 0:00:03]} 50. Kh4 {[%clk 0:00:05]}  e2 {[%clk 0:00:03]} 51. Bxa5 {[%clk 0:00:05]}  Bxa3 {[%clk 0:00:03]} 52. Kg3 {[%clk 0:00:04]}  Bc5 {[%clk 0:00:03]} 53. Kf3 {[%clk 0:00:03]}  Ke5 {[%clk 0:00:03]} 54. Kxe2 {[%clk 0:00:04]}  Ke4 {[%clk 0:00:03]} 55. b4 {[%clk 0:00:04]}  Be7 {[%clk 0:00:02]} 56. b5 {[%clk 0:00:05]}  Kd4 {[%clk 0:00:03]} 57. b6 {[%clk 0:00:03]}  Kxc4 {[%clk 0:00:03]} 58. b7 {[%clk 0:00:04]}  Bd6 {[%clk 0:00:04]} 59. Bb6 {[%clk 0:00:04]}  Kb5 {[%clk 0:00:04]} 60. Ba7 {[%clk 0:00:03]}  Kc6 {[%clk 0:00:04]} 61. b8=Q {[%clk 0:00:03]}  Bxb8 {[%clk 0:00:05]} 62. Bxb8 {[%clk 0:00:04]}  Kd5 {[%clk 0:00:05]} 63. Kf3 {[%clk 0:00:04]}  Ke6 {[%clk 0:00:06]} 64. Kf4 {[%clk 0:00:05]}  Kf7 {[%clk 0:00:07]} 65. Be5 {[%clk 0:00:05]}  Kg6 {[%clk 0:00:08]} 66. Kg3 {[%clk 0:00:05]}  Kh5 {[%clk 0:00:09]} 67. Bf4 {[%clk 0:00:06]}  Kg6 {[%clk 0:00:09]} 68. Kh4 {[%clk 0:00:07]}  Kh7 {[%clk 0:00:10]} 69. Kg5 {[%clk 0:00:07]}  Kh8 {[%clk 0:00:11]} 1-0


[Site "https://www.chess.com"]

[Event "Titled Tuesday Blitz November 2 2021"]
[White "Potapova, Margarita"]
[Black "Siva Mahadevan"]
[WhiteFideId "14126869"]
[BlackFideId "25043153"]
[WhiteElo "2214"]
[BlackElo "2203"]
[Result "0-1"]
[Round "05"]
[TimeControl "180+1"]
[Date "2021.11.02"]
[WhiteClock "0:00:01"]
[BlackClock "0:01:42"]

1. d4 {[%clk 0:02:59]}  Nf6 {[%clk 0:02:59]} 2. c4 {[%clk 0:03:00]}  g6 {[%clk 0:03:00]} 3. Nc3 {[%clk 0:03:00]}  Bg7 {[%clk 0:03:01]} 4. e4 {[%clk 0:03:01]}  O-O {[%clk 0:03:02]} 5. h3 {[%clk 0:03:01]}  d6 {[%clk 0:03:02]} 6. Be3 {[%clk 0:03:02]}  e5 {[%clk 0:03:03]} 7. d5 {[%clk 0:03:02]}  Na6 {[%clk 0:03:04]} 8. g4 {[%clk 0:02:47]}  Nc5 {[%clk 0:03:02]} 9. f3 {[%clk 0:02:48]}  h5 {[%clk 0:03:03]} 10. Qd2 {[%clk 0:02:36]}  Nh7 {[%clk 0:03:01]} 11. Nge2 {[%clk 0:02:32]}  a5 {[%clk 0:02:58]} 12. Nc1 {[%clk 0:02:26]}  h4 {[%clk 0:02:54]} 13. Rg1 {[%clk 0:02:25]}  Bf6 {[%clk 0:02:54]} 14. g5 {[%clk 0:02:25]}  Be7 {[%clk 0:02:54]} 15. Nd3 {[%clk 0:02:24]}  b6 {[%clk 0:02:53]} 16. O-O-O {[%clk 0:02:22]}  Bd7 {[%clk 0:02:31]} 17. f4 {[%clk 0:02:06]}  exf4 {[%clk 0:02:26]} 18. Bxf4 {[%clk 0:02:03]}  Re8 {[%clk 0:02:26]} 19. Nxc5 {[%clk 0:01:26]}  bxc5 {[%clk 0:02:26]} 20. Bd3 {[%clk 0:01:22]}  Bf8 {[%clk 0:02:24]} 21. e5 {[%clk 0:00:59]}  dxe5 {[%clk 0:02:19]} 22. Be3 {[%clk 0:00:59]}  e4 {[%clk 0:02:18]} 23. Nxe4 {[%clk 0:01:00]}  Bg7 {[%clk 0:02:18]} 24. Bxc5 {[%clk 0:00:48]}  Rb8 {[%clk 0:02:18]} 25. b3 {[%clk 0:00:48]}  a4 {[%clk 0:02:14]} 26. b4 {[%clk 0:00:47]}  a3 {[%clk 0:02:15]} 27. Rde1 {[%clk 0:00:44]}  Bf5 {[%clk 0:02:08]} 28. Rgf1 {[%clk 0:00:39]}  Bxe4 {[%clk 0:02:07]} 29. Bxe4 {[%clk 0:00:32]}  Nxg5 {[%clk 0:02:07]} 30. Bc2 {[%clk 0:00:26]}  Bh6 {[%clk 0:02:07]} 31. Kb1 {[%clk 0:00:23]}  Qd7 {[%clk 0:02:02]} 32. Qf2 {[%clk 0:00:10]}  Qxh3 {[%clk 0:01:59]} 33. Rd1 {[%clk 0:00:05]}  Qc3 {[%clk 0:01:59]} 34. Bb3 {[%clk 0:00:03]}  Bg7 {[%clk 0:01:56]} 35. Bd4 {[%clk 0:00:01]}  Bxd4 {[%clk 0:01:57]} 36. Qxd4 {[%clk 0:00:02]}  Qxd4 {[%clk 0:01:56]} 37. Rxd4 {[%clk 0:00:03]}  Rxb4 {[%clk 0:01:56]} 38. Rxh4 {[%clk 0:00:03]}  Re3 {[%clk 0:01:53]} 39. Kc2 {[%clk 0:00:03]}  Kg7 {[%clk 0:01:53]} 40. Rg4 {[%clk 0:00:03]}  Nf3 {[%clk 0:01:52]} 41. Rf4 {[%clk 0:00:02]}  Ne5 {[%clk 0:01:51]} 42. c5 {[%clk 0:00:03]}  Rxf4 {[%clk 0:01:46]} 43. Rxf4 {[%clk 0:00:02]}  g5 {[%clk 0:01:44]} 44. Rf5 {[%clk 0:00:02]}  f6 {[%clk 0:01:44]} 45. Rf1 {[%clk 0:00:02]}  g4 {[%clk 0:01:44]} 46. d6 {[%clk 0:00:01]}  cxd6 {[%clk 0:01:44]} 47. cxd6 {[%clk 0:00:02]}  Rd3 {[%clk 0:01:44]} 48. Rf5 {[%clk 0:00:02]}  Rxd6 {[%clk 0:01:45]} 49. Rf4 {[%clk 0:00:02]}  Kg6 {[%clk 0:01:44]} 50. Kc3 {[%clk 0:00:02]}  Kg5 {[%clk 0:01:44]} 51. Rf1 {[%clk 0:00:03]}  g3 {[%clk 0:01:45]} 52. Bc2 {[%clk 0:00:02]}  Rc6+ {[%clk 0:01:44]} 53. Kd2 {[%clk 0:00:02]}  Nc4+ {[%clk 0:01:44]} 54. Ke2 {[%clk 0:00:02]}  Re6+ {[%clk 0:01:40]} 55. Kf3 {[%clk 0:00:02]}  Ne3 {[%clk 0:01:40]} 56. Re1 {[%clk 0:00:01]}  Nxc2 {[%clk 0:01:41]} 57. Rxe6 {[%clk 0:00:01]}  Nd4+ {[%clk 0:01:41]} 58. Kxg3 {[%clk 0:00:01]}  Nxe6 {[%clk 0:01:42]} 0-1


[Site "https://www.chess.com"]

[Event "Titled Tuesday Blitz November 2 2021"]
[White "Sanal, Vahap"]
[Black "Kadam, Om Manish"]
[WhiteFideId "6300545"]
[BlackFideId "45076294"]
[WhiteElo "2492"]
[BlackElo "1729"]
[Result "0-1"]
[Round "05"]
[TimeControl "180+1"]
[Date "2021.11.02"]
[WhiteClock "0:00:13"]
[BlackClock "0:00:30"]

1. e4 {[%clk 0:03:00]}  c6 {[%clk 0:03:00]} 2. Nf3 {[%clk 0:02:59]}  d5 {[%clk 0:03:00]} 3. d3 {[%clk 0:03:00]}  dxe4 {[%clk 0:03:00]} 4. dxe4 {[%clk 0:03:00]}  Qxd1+ {[%clk 0:03:01]} 5. Kxd1 {[%clk 0:03:00]}  Bg4 {[%clk 0:03:02]} 6. Be2 {[%clk 0:02:58]}  Nd7 {[%clk 0:03:02]} 7. h3 {[%clk 0:02:57]}  Bxf3 {[%clk 0:03:00]} 8. Bxf3 {[%clk 0:02:58]}  Ngf6 {[%clk 0:03:00]} 9. Nd2 {[%clk 0:02:50]}  e5 {[%clk 0:03:00]} 10. c3 {[%clk 0:02:43]}  O-O-O {[%clk 0:03:00]} 11. Kc2 {[%clk 0:02:37]}  Bc5 {[%clk 0:02:54]} 12. Rf1 {[%clk 0:02:36]}  Rhe8 {[%clk 0:02:53]} 13. a4 {[%clk 0:02:29]}  Nf8 {[%clk 0:02:52]} 14. b4 {[%clk 0:02:25]}  Bb6 {[%clk 0:02:52]} 15. Nc4 {[%clk 0:02:24]}  Bc7 {[%clk 0:02:52]} 16. Be3 {[%clk 0:02:22]}  Kb8 {[%clk 0:02:49]} 17. b5 {[%clk 0:02:17]}  Ne6 {[%clk 0:02:30]} 18. Rfb1 {[%clk 0:02:06]}  c5 {[%clk 0:02:25]} 19. a5 {[%clk 0:02:06]}  b6 {[%clk 0:02:24]} 20. axb6 {[%clk 0:02:05]}  axb6 {[%clk 0:02:25]} 21. Ra6 {[%clk 0:02:04]}  Kb7 {[%clk 0:02:24]} 22. Be2 {[%clk 0:01:48]}  Ra8 {[%clk 0:02:23]} 23. Rba1 {[%clk 0:01:48]}  Nd7 {[%clk 0:02:02]} 24. Rd1 {[%clk 0:01:42]}  Red8 {[%clk 0:02:01]} 25. Bg4 {[%clk 0:01:30]}  Rxa6 {[%clk 0:01:55]} 26. bxa6+ {[%clk 0:01:30]}  Kxa6 {[%clk 0:01:56]} 27. Bxe6 {[%clk 0:01:11]}  fxe6 {[%clk 0:01:57]} 28. Nd6 {[%clk 0:01:12]}  Bxd6 {[%clk 0:01:46]} 29. Rxd6 {[%clk 0:01:13]}  Kb7 {[%clk 0:01:38]} 30. Rxe6 {[%clk 0:01:13]}  Kc7 {[%clk 0:01:39]} 31. Re7 {[%clk 0:01:11]}  Rg8 {[%clk 0:01:39]} 32. Rf7 {[%clk 0:01:08]}  Kd6 {[%clk 0:01:38]} 33. Bg5 {[%clk 0:01:05]}  h6 {[%clk 0:01:34]} 34. Bh4 {[%clk 0:01:05]}  Ke6 {[%clk 0:01:35]} 35. Re7+ {[%clk 0:01:05]}  Kd6 {[%clk 0:01:36]} 36. Rf7 {[%clk 0:01:05]}  Ke6 {[%clk 0:01:36]} 37. Rf3 {[%clk 0:01:00]}  Nf6 {[%clk 0:01:36]} 38. Bxf6 {[%clk 0:00:52]}  gxf6 {[%clk 0:01:37]} 39. g3 {[%clk 0:00:52]}  Ra8 {[%clk 0:01:37]} 40. Kb2 {[%clk 0:00:52]}  Rd8 {[%clk 0:01:36]} 41. Kc2 {[%clk 0:00:52]}  c4 {[%clk 0:01:34]} 42. Rf5 {[%clk 0:00:51]}  Ra8 {[%clk 0:01:31]} 43. Kb2 {[%clk 0:00:50]}  Rd8 {[%clk 0:01:30]} 44. Kc2 {[%clk 0:00:50]}  Rd3 {[%clk 0:01:08]} 45. Kb2 {[%clk 0:00:50]}  Rd2+ {[%clk 0:01:06]} 46. Ka3 {[%clk 0:00:50]}  Re2 {[%clk 0:01:01]} 47. Kb4 {[%clk 0:00:45]}  Rxe4 {[%clk 0:01:00]} 48. Rh5 {[%clk 0:00:46]}  Re2 {[%clk 0:00:59]} 49. Rxh6 {[%clk 0:00:41]}  Rxf2 {[%clk 0:00:59]} 50. Kxc4 {[%clk 0:00:39]}  Rd2 {[%clk 0:00:56]} 51. g4 {[%clk 0:00:39]}  Kf7 {[%clk 0:00:53]} 52. Rh7+ {[%clk 0:00:36]}  Kg6 {[%clk 0:00:50]} 53. Rb7 {[%clk 0:00:32]}  Rd6 {[%clk 0:00:39]} 54. h4 {[%clk 0:00:32]}  Kh6 {[%clk 0:00:35]} 55. Kb5 {[%clk 0:00:30]}  Re6 {[%clk 0:00:32]} 56. Ra7 {[%clk 0:00:13]}  e4 {[%clk 0:00:32]} 57. Kc4 {[%clk 0:00:12]}  e3 {[%clk 0:00:31]} 58. Kd3 {[%clk 0:00:13]}  e2 {[%clk 0:00:30]} 0-1


[Site "https://www.chess.com"]

[Event "Titled Tuesday Blitz November 2 2021"]
[White "Sorokin, Aleksey"]
[Black "Naroditsky, Daniel"]
[WhiteFideId "24176460"]
[BlackFideId "2026961"]
[WhiteElo "2476"]
[BlackElo "2608"]
[Result "0-1"]
[Round "05"]
[TimeControl "180+1"]
[Date "2021.11.02"]
[WhiteClock "0:00:05"]
[BlackClock "0:00:05"]

1. d4 {[%clk 0:03:00]}  Nf6 {[%clk 0:02:59]} 2. c4 {[%clk 0:03:01]}  g6 {[%clk 0:02:58]} 3. Nc3 {[%clk 0:03:00]}  Bg7 {[%clk 0:02:58]} 4. e4 {[%clk 0:03:00]}  d6 {[%clk 0:02:59]} 5. Nf3 {[%clk 0:03:00]}  O-O {[%clk 0:03:00]} 6. Be2 {[%clk 0:03:00]}  e5 {[%clk 0:03:00]} 7. O-O {[%clk 0:03:00]}  exd4 {[%clk 0:03:01]} 8. Nxd4 {[%clk 0:03:00]}  Re8 {[%clk 0:03:02]} 9. f3 {[%clk 0:02:59]}  Nc6 {[%clk 0:02:56]} 10. Be3 {[%clk 0:02:57]}  Nh5 {[%clk 0:02:56]} 11. Qd2 {[%clk 0:02:55]}  Nxd4 {[%clk 0:02:55]} 12. Bxd4 {[%clk 0:02:54]}  Nf4 {[%clk 0:02:56]} 13. Rfd1 {[%clk 0:02:40]}  Bxd4+ {[%clk 0:02:51]} 14. Qxd4 {[%clk 0:02:39]}  Nxe2+ {[%clk 0:02:52]} 15. Nxe2 {[%clk 0:02:39]}  b6 {[%clk 0:02:52]} 16. Nc3 {[%clk 0:02:32]}  Bb7 {[%clk 0:02:52]} 17. Rac1 {[%clk 0:02:22]}  Qg5 {[%clk 0:02:52]} 18. Nd5 {[%clk 0:02:16]}  Bxd5 {[%clk 0:02:51]} 19. cxd5 {[%clk 0:02:17]}  Re7 {[%clk 0:02:50]} 20. Qd2 {[%clk 0:02:00]}  Qe5 {[%clk 0:02:45]} 21. Rc4 {[%clk 0:01:58]}  b5 {[%clk 0:02:35]} 22. Rd4 {[%clk 0:01:41]}  f5 {[%clk 0:02:28]} 23. Qd3 {[%clk 0:01:32]}  a6 {[%clk 0:02:17]} 24. a4 {[%clk 0:01:05]}  bxa4 {[%clk 0:02:12]} 25. Rxa4 {[%clk 0:01:04]}  Qxb2 {[%clk 0:02:03]} 26. exf5 {[%clk 0:00:59]}  Re2 {[%clk 0:00:44]} 27. Rg4 {[%clk 0:00:53]}  Rae8 {[%clk 0:00:45]} 28. h4 {[%clk 0:00:45]}  Qb6+ {[%clk 0:00:15]} 29. Kh2 {[%clk 0:00:40]}  Qf2 {[%clk 0:00:12]} 30. fxg6 {[%clk 0:00:35]}  h5 {[%clk 0:00:13]} 31. Qf5 {[%clk 0:00:31]}  R8e7 {[%clk 0:00:02]} 32. Qxh5 {[%clk 0:00:25]}  Qxf3 {[%clk 0:00:02]} 33. Rg1 {[%clk 0:00:14]}  Qf2 {[%clk 0:00:01]} 34. Qg5 {[%clk 0:00:10]}  R2e5 {[%clk 0:00:02]} 35. Qf4 {[%clk 0:00:08]}  Qxf4+ {[%clk 0:00:02]} 36. Rxf4 {[%clk 0:00:09]}  Kg7 {[%clk 0:00:02]} 37. Rgf1 {[%clk 0:00:08]}  Kxg6 {[%clk 0:00:02]} 38. Rd4 {[%clk 0:00:08]}  a5 {[%clk 0:00:01]} 39. Ra1 {[%clk 0:00:08]}  Re4 {[%clk 0:00:01]} 40. Rxe4 {[%clk 0:00:08]}  Rxe4 {[%clk 0:00:02]} 41. Rxa5 {[%clk 0:00:07]}  Rxh4+ {[%clk 0:00:03]} 42. Kg3 {[%clk 0:00:07]}  Rc4 {[%clk 0:00:03]} 43. Kf3 {[%clk 0:00:07]}  Kf5 {[%clk 0:00:03]} 44. g4+ {[%clk 0:00:07]}  Rxg4 {[%clk 0:00:03]} 45. Ra8 {[%clk 0:00:06]}  Rc4 {[%clk 0:00:02]} 46. Re8 {[%clk 0:00:06]}  Rc5 {[%clk 0:00:03]} 47. Re7 {[%clk 0:00:06]}  Kf6 {[%clk 0:00:03]} 48. Rh7 {[%clk 0:00:05]}  Ke5 {[%clk 0:00:04]} 49. Rh5+ {[%clk 0:00:05]}  Kd4 {[%clk 0:00:04]} 50. Rh7 {[%clk 0:00:04]}  Kxd5 {[%clk 0:00:05]} 51. Ke3 {[%clk 0:00:05]}  Kc4 {[%clk 0:00:05]} 0-1


[Site "https://www.chess.com"]